bitfinex/quotes_SOLUSD_20220129
["timestamp","ask_amount","ask_price","bid_price","bid_amount"]
[1643444217205,0.25,96.635,96.578,0.25]
[1643444217804,36.33554245,96.646,96.577,23.7603]
[1643444218009,6.0,96.636,96.578,0.25]
[1643444218210,6.0,96.636,96.577,23.7603]
[1643444218513,6.0,96.636,96.578,0.25]
[1643444219205,0.25,96.635,96.566,103.8]
[1643444219611,6.25,96.635,96.566,103.8]
[1643444220014,6.25,96.635,96.567,22.756]
[1643444220815,6.25,96.635,96.568,0.25]
[1643444221415,6.25,96.635,96.567,22.756]
[1643444223621,6.25,96.635,96.568,103.8]
[1643444223822,6.25,96.635,96.568,104.05]
[1643444224421,6.25,96.635,96.568,103.8]
[1643444224623,6.25,96.635,96.569,0.25]
[1643444225929,6.0,96.635,96.57,14.85]
[1643444226132,23.0744,96.645,96.57,14.85]
[1643444226328,23.0744,96.645,96.581,103.8]
[1643444226530,23.0744,96.645,96.592,103.8]
[1643444226729,36.33554245,96.646,96.592,103.8]
[1643444226931,36.33554245,96.646,96.582,33.43964534]
[1643444227932,0.25,96.645,96.582,33.43964534]
[1643444228533,0.25,96.645,96.592,6.0]
[1643444228935,0.25,96.645,96.593,0.25]
[1643444229344,0.25,96.645,96.593,104.05]
[1643444229938,97.2083,96.713,96.593,104.05]
[1643444230139,6.0,96.696,96.604,103.8]
[1643444230339,6.0,96.696,96.606,103.8]
[1643444230554,6.0,96.69,96.605,49.1262]
[1643444230756,6.0,96.69,96.603,6.0]
[1643444230956,69.11056197,96.689,96.604,56.44335949]
[1643444231460,6.0,96.679,96.604,56.44335949]
[1643444231755,24.8788,96.678,96.604,56.44335949]
[1643444231955,24.8788,96.678,96.614,6.0]
[1643444232158,24.6093332,96.667,96.614,6.0]
[1643444232457,6.0,96.657,96.604,56.44335949]
[1643444232857,6.0,96.657,96.605,0.25]
[1643444233659,0.25,96.656,96.605,0.25]
[1643444234461,0.25,96.656,96.604,24.8022]
[1643444235461,0.25,96.656,96.605,35.60206273]
[1643444235862,0.25,96.656,96.601,24.5505]
[1643444236262,0.25,96.656,96.602,0.25]
[1643444236465,0.25,96.656,96.601,24.5505]
[1643444236863,0.25,96.656,96.602,36.84959817]
[1643444237063,0.25,96.656,96.602,37.09959817]
[1643444237464,6.0,96.657,96.602,37.09959817]
[1643444237666,24.6093332,96.667,96.602,37.09959817]
[1643444238166,24.6093332,96.667,96.612,6.0]
[1643444238363,24.6093332,96.667,96.613,23.3652]
[1643444238564,24.6093332,96.667,96.602,36.84959817]
[1643444238565,6.0,96.657,96.602,36.84959817]
[1643444238764,0.25,96.656,96.602,36.84959817]
[1643444239167,6.0,96.657,96.602,36.84959817]
[1643444239565,24.6093332,96.667,96.596,23.1152]
[1643444239765,6.0,96.657,96.596,23.1152]
[1643444240166,6.0,96.647,96.596,23.1152]
[1643444240569,44.43535879,96.646,96.596,23.1152]
[1643444240968,6.0,96.636,96.596,23.1152]
[1643444241366,0.25,96.635,96.596,23.1152]
[1643444241769,6.0,96.636,96.596,23.1152]
[1643444242169,44.18535879,96.646,96.596,23.1152]
[1643444243170,0.25,96.645,96.596,23.1152]
[1643444244169,0.25,96.645,96.58,14.85]
[1643444244372,0.25,96.645,96.581,0.25]
[1643444244571,0.25,96.645,96.581,35.40807553]
[1643444244771,0.25,96.645,96.59,6.0]
[1643444244971,0.25,96.645,96.591,6.0]
[1643444245373,0.25,96.645,96.592,0.25]
[1643444245572,0.25,96.645,96.591,6.0]
[1643444246371,0.25,96.645,96.581,35.15807553]
[1643444246573,0.25,96.645,96.582,0.25]
[1643444246774,0.25,96.645,96.585,6.0]
[1643444246978,6.0,96.636,96.575,24.3821]
[1643444247374,0.25,96.635,96.575,24.3821]
[1643444247575,6.25,96.635,96.575,24.3821]
[1643444248175,0.25,96.635,96.575,24.3821]
[1643444248381,0.25,96.644,96.576,0.25]
[1643444248675,6.0,96.636,96.585,6.0]
[1643444248876,0.25,96.635,96.586,0.25]
[1643444249307,0.25,96.635,96.575,24.3821]
[1643444249482,6.25,96.635,96.575,24.3821]
[1643444249877,0.25,96.635,96.575,24.3821]
[1643444250078,0.25,96.644,96.575,24.3821]
[1643444250478,6.0,96.635,96.575,24.3821]
[1643444250879,0.25,96.634,96.575,24.3821]
[1643444251481,0.25,96.634,96.585,6.0]
[1643444251779,0.25,96.634,96.586,24.7729]
[1643444252180,6.0,96.635,96.586,24.7729]
[1643444252384,0.25,96.634,96.586,24.7729]
[1643444252981,44.18535879,96.646,96.587,0.25]
[1643444253180,44.18535879,96.646,96.597,103.8]
[1643444253379,44.18535879,96.646,96.596,6.0]
[1643444254181,44.18535879,96.646,96.597,0.25]
[1643444254380,0.25,96.645,96.597,0.25]
[1643444254783,0.25,96.645,96.603,6.0]
[1643444254983,0.25,96.645,96.594,103.8]
[1643444254984,0.25,96.645,96.604,6.0]
[1643444255181,0.25,96.645,96.604,109.8]
[1643444255381,0.25,96.645,96.605,0.25]
[1643444255587,0.25,96.645,96.614,6.0]
[1643444256082,0.25,96.645,96.604,6.0]
[1643444256281,0.25,96.645,96.605,0.25]
[1643444256483,0.25,96.645,96.591,1.43377649]
[1643444256682,0.25,96.645,96.586,26.20667649]
[1643444256882,0.25,96.645,96.588,1.43377649]
[1643444257086,0.25,96.645,96.587,29.71218229]
[1643444257883,0.25,96.645,96.587,31.14595878]
[1643444258283,0.25,96.645,96.588,103.8]
[1643444258682,0.25,96.645,96.589,1.68377649]
[1643444258883,44.18535879,96.646,96.599,103.8]
[1643444260286,44.18535879,96.646,96.6,0.25]
[1643444260885,44.18535879,96.646,96.599,103.8]
[1643444261487,44.18535879,96.646,96.61,11.63592254]
[1643444261689,23.0418,96.678,96.61,11.63592254]
[1643444261987,0.25,96.677,96.62,6.0]
[1643444262487,0.25,96.677,96.621,6.0]
[1643444262686,45.05570919,96.677,96.621,6.0]
[1643444262888,6.0,96.668,96.621,6.0]
[1643444263095,6.0,96.667,96.621,6.0]
[1643444263787,0.25,96.666,96.621,6.0]
[1643444265391,6.0,96.667,96.621,6.0]
[1643444265791,0.25,96.666,96.621,6.94175073]
[1643444265992,44.80570919,96.677,96.622,6.0]
[1643444266193,0.25,96.666,96.622,30.6102]
[1643444266391,44.80570919,96.677,96.622,30.6102]
[1643444266593,14.7087195,96.719,96.622,30.6102]
[1643444266594,1.43793618,96.696,96.623,0.25]
[1643444266792,0.25,96.693,96.623,0.25]
[1643444266991,0.25,96.693,96.631,6.0]
[1643444267190,0.25,96.693,96.632,103.8]
[1643444267393,0.25,96.693,96.632,110.05]
[1643444267591,0.25,96.693,96.634,103.8]
[1643444267796,0.25,96.693,96.635,0.25]
[1643444268091,0.25,96.693,96.644,32.987687]
[1643444268591,0.25,96.693,96.643,6.0]
[1643444268991,0.25,96.693,96.644,6.0]
[1643444269791,0.25,96.693,96.645,30.46616076]
[1643444270193,6.0,96.684,96.645,30.46616076]
[1643444270492,0.25,96.683,96.633,22.5891]
[1643444270692,0.25,96.683,96.635,0.25]
[1643444271496,34.07700112,96.694,96.635,34.40534122]
[1643444271497,0.25,96.693,96.635,34.40534122]
[1643444271915,0.25,96.693,96.635,34.15534122]
[1643444272114,34.07700112,96.694,96.635,34.15534122]
[1643444272314,34.07700112,96.694,96.636,0.25]
[1643444272918,34.07700112,96.694,96.635,34.15534122]
[1643444273123,6.0,96.684,96.635,34.15534122]
[1643444273520,0.25,96.683,96.635,34.15534122]
[1643444273724,0.25,96.693,96.635,34.15534122]
[1643444273924,6.0,96.684,96.635,34.15534122]
[1643444274225,0.25,96.693,96.645,6.0]
[1643444274422,0.25,96.683,96.645,6.0]
[1643444274623,0.25,96.693,96.645,6.0]
[1643444275627,0.25,96.693,96.635,34.15534122]
[1643444275825,0.25,96.693,96.636,0.25]
[1643444276031,0.25,96.693,96.635,34.15534122]
[1643444276527,34.07700112,96.694,96.635,34.15534122]
[1643444277128,6.0,96.684,96.605,1.43377649]
[1643444277327,6.0,96.684,96.607,22.7543]
[1643444277531,6.0,96.684,96.594,1.43377649]
[1643444277731,26.66109142,96.683,96.596,1.43377649]
[1643444277929,26.91109142,96.683,96.587,1.43377649]
[1643444278132,37.02489405,96.672,96.582,29.34454602]
[1643444278331,0.25,96.671,96.582,29.34454602]
[1643444278530,6.0,96.662,96.582,29.34454602]
[1643444278928,0.25,96.661,96.567,1.43377649]
[1643444279128,6.0,96.66,96.563,1.43377649]
[1643444279328,0.25,96.659,96.565,1.43377649]
[1643444279530,0.25,96.659,96.575,6.0]
[1643444279728,0.25,96.659,96.576,127.8774]
[1643444279729,23.1998,96.659,96.576,127.8774]
[1643444279929,23.1998,96.659,96.577,29.37360069]
[1643444280135,6.0,96.649,96.587,6.0]
[1643444280330,34.07700112,96.657,96.587,6.0]
[1643444280331,22.9498,96.681,96.588,104.05]
[1643444280528,22.9498,96.681,96.598,6.0]
[1643444280729,0.25,96.68,96.598,6.0]
[1643444280931,22.9498,96.681,96.599,104.05]
[1643444281130,22.9498,96.681,96.609,6.0]
[1643444281330,43.4487983,96.68,96.61,11.97450414]
[1643444281628,6.0,96.67,96.61,11.97450414]
[1643444281830,6.0,96.67,96.611,24.2388]
[1643444282230,6.0,96.67,96.612,0.25]
[1643444282429,0.25,96.669,96.612,103.8]
[1643444282632,0.25,96.669,96.611,24.2388]
[1643444282929,0.25,96.669,96.612,0.25]
[1643444283129,0.25,96.669,96.621,6.0]
[1643444283329,0.25,96.669,96.622,103.8]
[1643444283531,0.25,96.669,96.633,103.8]
[1643444283930,0.25,96.669,96.635,103.8]
[1643444284130,6.0,96.697,96.635,103.8]
[1643444284331,0.25,96.696,96.635,103.8]
[1643444284531,36.39528204,96.696,96.637,103.8]
[1643444284931,6.0,96.686,96.637,103.8]
[1643444285433,0.25,96.685,96.637,103.8]
[1643444287133,0.25,96.695,96.637,103.8]
[1643444287534,0.25,96.695,96.647,6.0]
[1643444287738,6.0,96.699,96.648,103.8]
[1643444287936,0.25,96.698,96.648,103.8]
[1643444288435,6.0,96.699,96.648,103.8]
[1643444288636,6.0,96.699,96.649,0.25]
[1643444288834,23.7015,96.709,96.65,103.8]
[1643444289235,23.7015,96.709,96.651,0.25]
[1643444289435,58.80348996,96.709,96.651,0.25]
[1643444289636,58.80348996,96.709,96.659,6.0]
[1643444289836,1.43793618,96.732,96.66,35.87490414]
[1643444290038,24.5466,96.722,96.66,41.62490414]
[1643444290565,24.5466,96.722,96.661,103.8]
[1643444291036,24.5466,96.722,96.672,103.8]
[1643444291238,44.99044044,96.729,96.672,103.8]
[1643444291437,0.25,96.721,96.682,6.0]
[1643444291637,0.25,96.728,96.672,103.8]
[1643444291836,6.0,96.729,96.672,103.8]
[1643444292040,6.0,96.734,96.673,128.3884]
[1643444292236,0.25,96.728,96.673,24.5884]
[1643444293341,0.25,96.732,96.673,24.5884]
[1643444293939,45.59681628,96.733,96.673,24.5884]
[1643444294140,45.59681628,96.733,96.674,0.25]
[1643444295642,45.59681628,96.733,96.683,35.37360069]
[1643444295943,45.59681628,96.733,96.684,23.7093]
[1643444296343,0.25,96.732,96.684,23.7093]
[1643444296741,0.25,96.732,96.634,1.43377649]
[1643444296942,6.0,96.723,96.641,103.8]
[1643444297146,6.0,96.723,96.651,109.8]
[1643444297346,23.9693,96.722,96.653,103.8]
[1643444297543,6.0,96.712,96.663,6.0]
[1643444297743,25.75507889,96.711,96.663,6.0]
[1643444298169,25.75507889,96.711,96.654,35.75122326]
[1643444298371,6.0,96.701,96.622,1.43377649]
[1643444298669,6.0,96.701,96.609,1.43377649]
[1643444298871,0.25,96.7,96.601,1.43377649]
[1643444299070,24.6171,96.7,96.6,1.43377649]
[1643444299270,24.6171,96.7,96.602,38.22819671]
[1643444299470,24.6171,96.7,96.612,6.0]
[1643444299673,24.6171,96.7,96.613,22.7147]
[1643444299870,24.6171,96.7,96.613,28.7147]
[1643444300070,24.6171,96.7,96.613,132.5147]
[1643444300574,6.0,96.69,96.613,132.5147]
[1643444300770,63.75784648,96.689,96.613,132.5147]
[1643444300971,63.50784648,96.689,96.613,132.5147]
[1643444301171,0.25,96.688,96.613,132.5147]
[1643444301373,0.25,96.688,96.614,0.25]
[1643444301971,0.25,96.688,96.621,2.86990812]
[1643444302271,0.25,96.688,96.623,6.0]
[1643444302474,6.0,96.679,96.624,22.5296]
[1643444302672,6.0,96.679,96.631,6.0]
[1643444302872,0.25,96.678,96.624,22.5296]
[1643444306285,0.25,96.678,96.593,127.7267]
[1643444306481,0.25,96.678,96.594,23.5775]
[1643444306683,0.25,96.678,96.603,6.0]
[1643444306883,0.25,96.678,96.604,6.0]
[1643444307283,0.25,96.678,96.594,23.5775]
[1643444307284,0.25,96.678,96.602,40.85349818]
[1643444307484,23.3877,96.678,96.602,40.85349818]
[1643444307887,32.13074869,96.667,96.602,40.85349818]
[1643444308194,32.13074869,96.667,96.603,0.25]
[1643444308390,23.3877,96.666,96.603,0.25]
[1643444311992,6.0,96.656,96.594,23.5775]
[1643444312393,0.25,96.655,96.594,23.5775]
[1643444313195,0.25,96.655,96.595,29.7973883]
[1643444313394,0.25,96.655,96.596,0.25]
[1643444313795,0.25,96.655,96.595,29.7973883]
[1643444313995,0.25,96.655,96.605,6.0]
[1643444314195,0.25,96.655,96.606,24.2149]
[1643444318525,0.25,96.655,96.595,29.7973883]
[1643444319928,0.25,96.655,96.596,23.1738]
[1643444321431,0.25,96.655,96.585,15.2474]
[1643444321631,24.1828,96.655,96.586,0.25]
[1643444322034,6.0,96.645,96.586,0.25]
[1643444322234,39.22114648,96.644,96.585,15.2474]
[1643444322631,6.0,96.634,96.585,15.2474]
[1643444322831,0.25,96.633,96.585,38.8025]
[1643444323035,6.25,96.633,96.585,38.8025]
[1643444325334,0.25,96.633,96.585,38.8025]
[1643444325734,0.25,96.636,96.585,38.8025]
[1643444328537,6.0,96.627,96.585,38.8025]
[1643444328734,32.13074869,96.626,96.585,38.8025]
[1643444328935,32.38074869,96.626,96.585,38.8025]
[1643444329134,6.0,96.616,96.585,38.8025]
[1643444329337,0.25,96.615,96.585,38.8025]
[1643444331040,11.88,96.615,96.585,23.5551]
[1643444333244,11.88,96.615,96.573,1.43377649]
[1643444333642,11.88,96.615,96.574,1.43377649]
[1643444333841,11.88,96.615,96.572,1.43377649]
[1643444335639,11.63,96.615,96.573,1.43377649]
[1643444335840,11.63,96.615,96.58,103.8]
[1643444336041,11.63,96.615,96.584,8.3526417]
[1643444336945,0.25,96.614,96.584,8.3526417]
[1643444338646,0.25,96.614,96.58,103.8]
[1643444341749,0.25,96.614,96.59,6.0]
[1643444341948,0.25,96.614,96.581,22.8476]
[1643444342150,0.25,96.614,96.582,103.8]
[1643444344151,0.25,96.614,96.583,1.43377649]
[1643444344552,11.63,96.615,96.583,1.43377649]
[1643444345555,11.63,96.615,96.593,6.0]
[1643444345753,0.25,96.614,96.594,4.57248683]
[1643444346755,0.25,96.646,96.595,22.9744]
[1643444347354,0.25,96.668,96.595,22.9744]
[1643444347555,6.0,96.659,96.595,22.9744]
[1643444347754,24.1622,96.658,96.595,22.9744]
[1643444347958,30.1622,96.658,96.595,22.9744]
[1643444349380,29.9122,96.658,96.595,22.9744]
[1643444349565,29.9122,96.658,96.595,24.40817649]
[1643444349966,29.9122,96.658,96.595,22.9744]
[1643444350788,0.25,96.657,96.595,22.9744]
[1643444354391,0.25,96.657,96.596,103.8]
[1643444354592,0.25,96.657,96.606,6.0]
[1643444354789,0.25,96.657,96.596,1.43377649]
[1643444354989,0.25,96.657,96.595,22.9744]
[1643444355589,0.25,96.657,96.595,24.40817649]
[1643444355789,0.25,96.657,96.595,22.9744]
[1643444359497,29.9122,96.658,96.605,6.0]
[1643444359693,29.9122,96.658,96.606,24.43]
[1643444359893,29.9122,96.658,96.606,30.43]
[1643444360094,29.9122,96.658,96.616,6.0]
[1643444360293,29.9122,96.658,96.617,32.68643004]
[1643444360694,0.25,96.657,96.617,32.68643004]
[1643444362495,29.9122,96.658,96.617,32.68643004]
[1643444363095,29.9122,96.658,96.618,22.6617]
[1643444363896,0.25,96.657,96.618,22.6617]
[1643444364495,23.0558,96.68,96.628,6.0]
[1643444364699,23.0558,96.68,96.629,22.5659]
[1643444365495,45.41049661,96.679,96.629,22.5659]
[1643444365895,0.25,96.678,96.629,22.5659]
[1643444367895,6.0,96.669,96.629,22.5659]
[1643444368300,0.25,96.668,96.629,22.5659]
[1643444369298,0.25,96.677,96.629,22.5659]
[1643444369900,0.25,96.678,96.629,22.5659]
[1643444372000,6.0,96.699,96.629,22.5659]
[1643444372200,6.0,96.699,96.63,2.31353041]
[1643444372403,0.25,96.698,96.629,22.5659]
[1643444372701,22.8488,96.698,96.629,22.5659]
[1643444372904,44.31128498,96.697,96.629,22.5659]
[1643444373102,6.0,96.687,96.63,2.31353041]
[1643444373303,6.0,96.687,96.63,106.36353041]
[1643444373901,6.0,96.687,96.64,6.0]
[1643444374102,6.0,96.687,96.641,22.9195]
[1643444374303,0.25,96.686,96.641,22.9195]
[1643444374913,1.43793618,96.724,96.642,103.8]
[1643444375108,1.43793618,96.736,96.653,103.8]
[1643444375308,1.43793618,96.766,96.659,1.43377649]
[1643444375511,22.794,96.769,96.67,16.28377649]
[1643444375709,22.794,96.769,96.671,127.8546]
[1643444375910,40.82326027,96.768,96.681,8.41167479]
[1643444376109,40.82326027,96.768,96.69,6.0]
[1643444376314,40.82326027,96.768,96.691,6.25]
[1643444376509,6.0,96.758,96.682,2.31368796]
[1643444376709,6.0,96.758,96.681,8.41167479]
[1643444377109,6.25,96.757,96.681,8.41167479]
[1643444377311,22.7764,96.756,96.681,8.41167479]
[1643444377512,6.0,96.746,96.681,8.41167479]
[1643444377710,22.7764,96.745,96.681,8.41167479]
[1643444377911,23.0264,96.745,96.681,8.41167479]
[1643444378111,30.2786349,96.734,96.681,8.41167479]
[1643444378311,0.25,96.733,96.671,24.0546]
[1643444378610,6.0,96.724,96.671,24.0546]
[1643444378810,0.25,96.723,96.671,24.0546]
[1643444381217,0.25,96.723,96.669,37.23280214]
[1643444381418,6.25,96.723,96.669,37.23280214]
[1643444381617,6.25,96.723,96.65,14.85]
[1643444381818,22.8446,96.722,96.64,23.1369]
[1643444382018,6.0,96.712,96.64,23.1369]
[1643444382218,22.8446,96.711,96.64,23.1369]
[1643444382418,23.0946,96.711,96.64,23.1369]
[1643444382623,35.37593915,96.7,96.64,23.1369]
[1643444382820,23.9992,96.699,96.64,23.1369]
[1643444383022,6.0,96.689,96.64,23.1369]
[1643444383425,0.25,96.688,96.64,23.1369]
[1643444384751,6.0,96.689,96.64,23.1369]
[1643444385155,0.25,96.688,96.64,23.1369]
[1643444386251,0.25,96.698,96.64,23.1369]
[1643444386450,6.0,96.689,96.64,23.1369]
[1643444386852,0.25,96.688,96.64,23.1369]
[1643444387451,0.25,96.688,96.627,38.56158019]
[1643444387654,22.8589,96.688,96.628,24.7749]
[1643444388053,6.0,96.678,96.629,0.25]
[1643444388253,0.25,96.677,96.629,0.25]
[1643444388855,6.0,96.678,96.629,0.25]
[1643444389053,0.25,96.677,96.629,0.25]
[1643444389655,0.25,96.677,96.629,104.05]
[1643444389854,6.0,96.69,96.629,104.05]
[1643444390157,35.37593915,96.7,96.639,109.8]
[1643444390354,35.37593915,96.7,96.641,103.8]
[1643444390555,35.37593915,96.7,96.651,6.0]
[1643444390758,35.37593915,96.7,96.652,24.8343]
[1643444391156,0.25,96.699,96.652,24.5843]
[1643444391358,0.25,96.699,96.631,24.5843]
[1643444391556,24.696,96.699,96.631,24.5843]
[1643444391755,24.696,96.699,96.641,6.0]
[1643444392053,35.37593915,96.7,96.641,6.0]
[1643444392254,15.521,96.73,96.641,6.0]
[1643444392454,15.521,96.73,96.642,23.0074]
[1643444392455,24.446,96.729,96.642,23.0074]
[1643444392657,6.0,96.719,96.642,23.0074]
[1643444392859,0.25,96.718,96.629,19.49642317]
[1643444393056,29.6868,96.718,96.611,24.1386]
[1643444393258,32.64349142,96.718,96.611,24.1386]
[1643444393455,2.95669142,96.717,96.611,24.1386]
[1643444393658,6.0,96.71,96.611,24.1386]
[1643444393854,2.95669142,96.717,96.611,24.1386]
[1643444393855,6.0,96.707,96.611,24.1386]
[1643444394058,24.0352,96.706,96.621,6.0]
[1643444394256,24.2852,96.706,96.621,6.0]
[1643444394456,6.0,96.696,96.622,6.0]
[1643444394855,0.25,96.695,96.622,6.0]
[1643444395254,24.2757,96.695,96.622,6.0]
[1643444395654,6.0,96.685,96.632,6.0]
[1643444395856,6.0,96.685,96.633,24.5448]
[1643444396057,6.0,96.685,96.633,30.2948]
[1643444396359,6.0,96.685,96.633,24.2948]
[1643444397156,0.25,96.684,96.633,24.2948]
[1643444400664,0.25,96.684,96.612,36.72004784]
[1643444400859,0.25,96.694,96.622,6.0]
[1643444401064,0.25,96.694,96.623,6.0]
[1643444401560,6.0,96.685,96.613,23.7619]
[1643444401760,0.25,96.684,96.624,2.32226429]
[1643444401960,6.0,96.675,96.625,22.5892]
[1643444402161,0.25,96.684,96.626,0.25]
[1643444402360,0.25,96.684,96.635,6.0]
[1643444402563,6.0,96.698,96.636,28.5892]
[1643444402761,6.0,96.698,96.637,0.25]
[1643444403161,6.0,96.698,96.637,2.57226429]
[1643444403361,6.0,96.698,96.638,2.32226429]
[1643444403764,6.0,96.698,96.639,0.25]
[1643444404364,6.0,96.698,96.64,2.3125487]
[1643444404563,6.0,96.698,96.65,6.0]
[1643444404765,6.0,96.698,96.651,4.62805699]
[1643444405468,0.25,96.697,96.651,4.37805699]
[1643444405667,6.0,96.698,96.651,4.37805699]
[1643444405865,6.0,96.699,96.652,2.5625487]
[1643444406067,6.0,96.699,96.652,0.25]
[1643444407070,0.25,96.698,96.651,4.37805699]
[1643444407870,6.0,96.699,96.652,0.25]
[1643444408469,0.25,96.698,96.651,4.37805699]
[1643444409074,6.25,96.698,96.651,4.37805699]
[1643444409572,6.25,96.698,96.64,1.43377649]
[1643444409771,0.25,96.698,96.652,2.3125487]
[1643444410275,0.25,96.707,96.652,2.3125487]
[1643444410474,6.0,96.698,96.644,1.43377649]
[1643444410698,6.0,96.698,96.643,1.43377649]
[1643444410999,0.25,96.697,96.642,32.0514611]
[1643444412493,0.25,96.697,96.652,6.0]
[1643444412893,0.25,96.697,96.653,110.05]
[1643444413097,0.25,96.697,96.654,29.2754]
[1643444413296,0.25,96.707,96.655,0.25]
[1643444413796,0.25,96.707,96.654,23.2754]
[1643444413995,6.0,96.698,96.654,23.2754]
[1643444414395,0.25,96.697,96.654,23.2754]
[1643444416197,0.25,96.697,96.655,0.25]
[1643444416396,0.25,96.697,96.654,23.2754]
[1643444416798,6.0,96.698,96.655,0.25]
[1643444416997,6.0,96.699,96.655,0.25]
[1643444417197,46.13044835,96.709,96.655,0.25]
[1643444417396,0.25,96.708,96.655,0.25]
[1643444419802,0.25,96.708,96.664,6.0]
[1643444420202,0.25,96.708,96.654,23.2754]
[1643444420601,0.25,96.708,96.655,0.25]
[1643444420802,0.25,96.708,96.654,23.2754]
[1643444421204,6.0,96.734,96.654,23.2754]
[1643444421405,0.25,96.733,96.654,23.2754]
[1643444421805,35.89270832,96.733,96.655,104.05]
[1643444422005,6.0,96.723,96.665,6.0]
[1643444422306,6.0,96.723,96.667,103.8]
[1643444422507,6.0,96.723,96.677,6.0]
[1643444422806,6.0,96.723,96.678,9.29664373]
[1643444423008,6.0,96.723,96.678,9.04664373]
[1643444423206,6.0,96.723,96.679,23.4713]
[1643444423408,6.0,96.723,96.679,23.7213]
[1643444423610,6.0,96.723,96.68,2.3125487]
[1643444424007,6.0,96.723,96.679,23.7213]
[1643444425010,22.8206,96.759,96.689,6.0]
[1643444425211,1.43793618,96.776,96.691,103.8]
[1643444425411,1.43793618,96.789,96.691,103.8]
[1643444425611,6.0,96.779,96.702,103.8]
[1643444425813,6.0,96.779,96.703,0.25]
[1643444426013,39.84202114,96.778,96.703,0.25]
[1643444426214,6.0,96.768,96.703,0.25]
[1643444426611,6.0,96.767,96.703,0.25]
[1643444426813,6.0,96.767,96.691,0.25]
[1643444427314,0.25,96.766,96.691,104.05]
[1643444427513,0.25,96.766,96.701,6.0]
[1643444427714,0.25,96.766,96.702,24.7567]
[1643444427914,0.25,96.767,96.702,25.0067]
[1643444428117,6.25,96.767,96.702,24.7567]
[1643444429916,23.9088,96.766,96.702,24.7567]
[1643444430117,6.0,96.756,96.702,24.7567]
[1643444430517,39.84202114,96.778,96.713,32.0514611]
[1643444430720,6.0,96.768,96.714,23.383]
[1643444431118,6.0,96.768,96.715,0.25]
[1643444431917,6.0,96.768,96.724,6.0]
[1643444432318,6.0,96.768,96.714,23.383]
[1643444432918,6.0,96.767,96.714,23.383]
[1643444433319,6.0,96.767,96.715,33.62829476]
[1643444433819,6.0,96.767,96.714,23.383]
[1643444434025,6.0,96.767,96.69,38.465]
[1643444434220,6.0,96.767,96.7,6.0]
[1643444434622,6.0,96.767,96.701,6.25]
[1643444434823,6.0,96.767,96.702,30.4147774]
[1643444435122,6.0,96.767,96.702,55.0554774]
[1643444436123,6.0,96.767,96.712,6.0]
[1643444436323,6.0,96.767,96.713,23.7793]